bitfinex/quotes_SOLUSD_20240822
["timestamp","ask_amount","ask_price","bid_price","bid_amount"]
[1724336956482,22.2458,143.08,143.01,13.16]
[1724336956654,22.2458,143.08,143.02,92.39710808]
[1724336959987,22.2458,143.08,143.03,32.87]
[1724336960187,22.2458,143.08,143.04,94.19381455]
[1724336960484,22.2458,143.08,143.05,1.39788506]
[1724336961075,22.2458,143.08,143.04,20.0]
[1724336961392,22.2458,143.08,143.02,20.0]
[1724336961567,22.2458,143.08,143.02,25.12926276]
[1724336961771,22.2458,143.08,143.03,20.0]
[1724336967304,22.2458,143.08,143.03,21.398103]
[1724336967795,22.2458,143.08,143.04,45.0]
[1724336968004,22.2458,143.08,143.05,1.39788723]
[1724336969706,22.2458,143.08,143.03,20.0]
[1724336969889,22.2458,143.08,143.0,32.87]
[1724336969890,22.2458,143.08,143.01,20.0]
[1724336970092,22.2458,143.08,143.02,45.0]
[1724336970291,22.2458,143.08,143.03,20.0]
[1724336973087,22.2458,143.08,143.03,21.39803158]
[1724336975290,22.2458,143.08,143.03,20.0]
[1724336979201,22.2458,143.08,143.03,21.39810027]
[1724336987806,35.3958,143.08,143.03,20.0]
[1724336988321,14.1,143.07,142.99,38.18640714]
[1724336988513,14.1,143.07,143.0,45.0]
[1724336988718,36.3458,143.08,143.01,21.39821708]
[1724336989012,36.3458,143.08,143.02,1.39821708]
[1724336993231,22.2458,143.08,143.02,46.39821708]
[1724336993424,22.2458,143.08,143.03,34.1]
[1724336993729,22.2458,143.08,143.04,1.397906]
[1724336994308,22.2458,143.08,143.05,15.49790041]
[1724336994539,22.2458,143.08,143.06,45.0]
[1724336994833,0.8473648,143.12,143.06,45.0]
[1724336995040,16.4755,143.11,143.07,1.39761203]
[1724336996023,16.4755,143.11,143.07,35.49761203]
[1724336996337,16.4755,143.11,143.08,1.39760864]
[1724336998714,7.0897648,143.12,143.08,1.39760864]
[1724336999039,0.8473648,143.12,143.09,14.1]
[1724336999221,0.8473648,143.12,143.1,1.3973727]
[1724336999806,0.8473648,143.12,143.07,20.0]
[1724337000048,0.8473648,143.12,143.08,45.0]
[1724337000342,0.8473648,143.12,142.99,2.70438648]
[1724337000558,6.6351,143.11,143.04,14.1]
[1724337000847,6.6351,143.11,143.05,20.0]
[1724337001009,6.6351,143.11,143.05,24.08489791]
[1724337001209,6.6351,143.11,143.06,5.48255841]
[1724337001417,6.6351,143.11,143.07,20.0]
[1724337001639,6.6351,143.11,143.08,1.3975709]
[1724337002147,6.6351,143.11,143.07,24.08489791]
[1724337002306,6.6351,143.11,143.07,21.39764968]
[1724337002510,20.7351,143.11,143.07,24.08500581]
[1724337002729,20.7351,143.11,143.03,14.1]
[1724337003046,20.7351,143.11,143.04,65.0]
[1724337003933,20.7351,143.11,143.05,1.39779907]
[1724337004632,20.7351,143.11,143.04,65.0]
[1724337005143,15.4265,143.1,143.04,20.0]
[1724337005513,14.1,143.09,143.04,20.0]
[1724337005708,14.1,143.09,143.02,20.0]
[1724337006327,7.9599548,143.12,143.02,20.0]
[1724337006328,14.09637711,143.17,143.02,20.0]
[1724337006543,14.1,143.1,143.02,20.0]
[1724337006730,14.1,143.1,143.03,45.0]
[1724337007341,1.20659532,143.14,143.07,6.9891]
[1724337007546,14.1,143.12,143.08,6.989]
[1724337007924,14.22549,143.13,143.08,6.989]
[1724337008317,21.21219,143.13,143.08,6.989]
[1724337008528,0.12549,143.12,143.08,6.989]
[1724337008729,0.12549,143.12,143.09,6.9884]
[1724337008937,14.1,143.13,143.09,6.9884]
[1724337009551,16.394,143.12,143.09,6.9884]
[1724337009943,16.394,143.12,143.05,15.49795728]
[1724337010251,16.394,143.12,143.1,6.9878]
[1724337010835,17.34321494,143.16,143.09,14.1]
[1724337011053,16.1368,143.16,143.13,6.9862]
[1724337011663,16.1368,143.16,143.11,14.1]
[1724337011846,16.1368,143.16,143.15,6.9856]
[1724337013934,15.244,143.2,143.18,6.9838]
[1724337014139,15.244,143.2,143.17,6.9845]
[1724337014763,15.244,143.2,143.15,1.39691552]
[1724337015057,15.244,143.2,143.13,21.39692411]
[1724337015356,15.244,143.2,143.14,45.0]
[1724337015556,15.244,143.2,143.15,1.39692508]
[1724337016163,50.424,143.2,143.14,45.0]
[1724337016334,50.424,143.2,143.13,20.0]
[1724337016540,50.424,143.2,143.15,6.9856]
[1724337016742,50.424,143.2,143.11,20.0]
[1724337016959,50.424,143.2,143.12,45.0]
[1724337017255,50.424,143.2,143.13,20.0]
[1724337017454,50.424,143.2,143.15,6.9856]
[1724337017933,50.424,143.2,143.14,6.986]
[1724337018142,0.12549,143.19,143.14,6.986]
[1724337020466,0.12549,143.19,143.15,6.9854]
[1724337020757,0.12549,143.19,143.13,21.397115]
[1724337020758,0.12549,143.19,143.16,6.985]
[1724337020960,0.12549,143.19,143.15,6.9856]
[1724337021570,15.244,143.2,143.15,6.9856]
[1724337022738,15.244,143.2,143.13,20.0]
[1724337023062,0.12549,143.19,143.14,6.9861]
[1724337023440,50.424,143.2,143.15,6.9854]
[1724337023638,50.424,143.2,143.16,6.985]
[1724337024141,50.424,143.2,143.15,6.9856]
[1724337024363,15.244,143.2,143.15,6.9856]
[1724337026566,50.424,143.2,143.15,6.9856]
[1724337027151,50.424,143.2,143.13,20.0]
[1724337027152,7.10929,143.19,143.13,20.0]
[1724337027353,35.18,143.18,143.11,26.9872]
[1724337027664,35.18,143.16,143.11,20.0]
[1724337027869,35.18,143.16,143.06,42.47198996]
[1724337028450,15.5451,143.14,143.07,9.19734305]
[1724337028865,15.5451,143.14,143.1,6.9876]
[1724337030387,15.5451,143.14,143.08,36.57751335]
[1724337030562,15.5451,143.14,143.09,66.39735551]
[1724337031987,15.5451,143.14,143.1,1.39726595]
[1724337032174,15.5451,143.14,143.09,65.0]
[1724337032677,15.5451,143.14,143.1,1.39726838]
[1724337032884,15.5451,143.14,143.12,6.9871]
[1724337035994,15.5451,143.14,143.11,6.9875]
[1724337037558,15.5451,143.14,143.12,6.9871]
[1724337039099,15.5451,143.14,143.09,20.0]
[1724337039382,15.5451,143.14,143.1,6.988]
[1724337041261,22.5312,143.14,143.09,6.9884]
[1724337042790,21.0666,143.13,143.08,6.9889]
[1724337042981,14.08,143.11,143.08,6.9889]
[1724337043182,14.08,143.11,143.07,6.9894]
[1724337043870,0.12549,143.12,143.08,6.9889]
[1724337044486,21.0666,143.13,143.08,6.9889]
[1724337045380,15.5451,143.14,143.09,1.3976483]
[1724337045761,15.5451,143.14,143.07,14.08]
[1724337046017,15.5451,143.14,143.05,14.08]
[1724337046172,14.08,143.13,143.06,65.0]
[1724337046888,14.08,143.13,143.09,6.9885]
[1724337047092,22.5313,143.14,143.09,6.9885]
[1724337047288,14.08,143.13,143.06,65.0]
[1724337047467,14.08,143.11,143.06,65.0]
[1724337047672,14.08,143.11,143.08,6.989]
[1724337049415,14.08,143.13,143.09,6.9885]
[1724337049781,21.0666,143.13,143.09,6.9885]
[1724337051009,21.0666,143.13,143.08,6.9889]
[1724337054510,14.08,143.13,143.09,6.9885]
[1724337055608,21.0666,143.13,143.09,6.9885]
[1724337055797,15.67059,143.14,143.1,6.988]
[1724337055995,14.08,143.13,143.1,6.988]
[1724337056407,15.5451,143.14,143.1,6.988]
[1724337057075,14.08,143.13,143.09,6.9884]
[1724337057479,21.0667,143.13,143.09,6.9884]
[1724337057691,15.5451,143.14,143.09,6.9884]
[1724337058106,15.5451,143.14,143.1,6.988]
[1724337058886,22.5312,143.14,143.09,6.9885]
[1724337060108,15.5451,143.14,143.1,6.9881]
[1724337060787,15.5451,143.14,143.11,6.9875]
[1724337060997,15.5451,143.14,143.06,20.0]
[1724337060998,15.5451,143.14,143.13,6.9866]
[1724337061202,15.5451,143.14,143.12,1.39740997]
[1724337061203,6.5509,143.15,143.12,8.38450997]
[1724337061383,6.5509,143.15,143.11,6.9875]
[1724337061590,6.5509,143.15,143.12,6.987]
[1724337062117,6.5509,143.15,143.12,6.9869]
[1724337063104,6.5509,143.15,143.13,6.9865]
[1724337063481,15.6933,143.17,143.1,14.08]
[1724337063695,15.6933,143.17,143.15,6.9856]
[1724337064294,15.6933,143.17,143.14,6.986]
[1724337064517,15.6933,143.17,143.13,6.9865]
[1724337064684,14.08,143.16,143.06,6.5842]
[1724337064891,14.08,143.16,143.12,6.987]
[1724337065913,14.08,143.16,143.07,7.28633185]
[1724337066119,14.08,143.1,143.07,14.27583185]
[1724337066420,14.08,143.1,143.07,6.9894]
[1724337069108,14.08,143.08,143.05,6.9904]
[1724337070512,35.23,143.09,143.05,6.9904]
[1724337071617,42.218,143.11,143.05,6.9904]
[1724337071817,0.12549,143.1,143.05,6.9904]
[1724337072727,7.11369,143.1,143.05,6.9904]
[1724337073102,35.23,143.09,143.01,6.88181518]
[1724337073311,35.23,143.09,143.02,66.39812659]
[1724337073605,42.2187,143.09,143.02,66.39812659]
[1724337073820,42.2187,143.09,143.02,20.0]
[1724337074128,42.2187,143.09,143.0,20.0]
[1724337074329,42.2187,143.09,143.03,6.9914]
[1724337074330,39.8787,143.09,143.03,6.9914]
[1724337074534,61.1765,143.07,143.02,6.9919]
[1724337075517,7.11559,143.06,142.97,7.004]
[1724337075808,7.11559,143.06,142.98,20.0]
[1724337076330,7.11559,143.06,142.99,1.39848153]
[1724337076924,7.11559,143.06,143.01,6.9924]
[1724337078848,39.8807,143.05,143.0,6.993]
[1724337079727,32.89,143.05,143.01,6.9925]
[1724337080442,39.8806,143.05,143.0,6.9928]
[1724337080615,15.0718,143.03,142.97,21.39858571]
[1724337080808,15.0718,143.03,142.99,6.9934]
[1724337081420,54.9533,143.03,142.98,6.9938]
[1724337083563,15.0718,143.03,142.99,6.9934]
[1724337084155,15.0718,143.03,143.02,6.992]
[1724337084343,21.3281,143.07,143.02,6.992]
[1724337084554,28.3178,143.07,143.02,6.992]
[1724337086137,0.12549,143.06,143.02,6.992]
[1724337086548,7.11549,143.06,143.02,6.992]
[1724337087053,0.12549,143.06,143.02,6.992]
[1724337089861,0.12549,143.06,142.97,1.39844322]
[1724337090074,0.12549,143.06,142.96,22.4541]
[1724337090075,6.994,142.98,142.89,15.9171]
[1724337090271,6.9934,143.0,142.94,6.9958]
[1724337090473,20.0,142.99,142.89,15.9171]
[1724337090629,20.0,142.99,142.89,48.8071]
[1724337090831,26.9935,142.99,142.92,6.9968]
[1724337091049,20.0,142.99,142.92,6.9967]
[1724337092082,33.01549,142.98,142.89,15.9171]
[1724337092381,33.01549,142.98,142.91,6.9972]
[1724337095487,16.2824,142.97,142.91,6.9972]
[1724337097087,39.67969,142.96,142.89,6.9979]
[1724337099187,46.67479,142.96,142.89,6.9979]
[1724337099488,32.94,142.94,142.89,6.9979]
[1724337100259,32.94,142.94,142.9,6.9978]
[1724337100494,32.94,142.94,142.88,6.9988]
[1724337100701,32.94,142.94,142.86,1.39951]
[1724337100880,32.94,142.94,142.86,21.39951]
[1724337101190,32.94,142.94,142.86,20.0]
[1724337101370,32.94,142.94,142.87,1.39956892]
[1724337101689,32.94,142.94,142.88,6.9988]
[1724337102059,0.12549,142.93,142.87,6.9993]
[1724337102344,15.6227,142.91,142.86,20.0]
[1724337102589,15.6227,142.91,142.84,20.0]
[1724337102762,15.6227,142.91,142.82,20.0]
[1724337103375,15.6227,142.91,142.83,1.39984321]
[1724337103563,15.6227,142.91,142.82,20.0]
[1724337103781,15.6227,142.91,142.87,6.9993]
[1724337104086,15.6227,142.91,142.88,8.39836076]
[1724337104287,15.6227,142.91,142.88,6.9987]
[1724337105199,15.6227,142.91,142.89,6.9982]
[1724337106207,15.6227,142.91,142.88,24.4951]
[1724337108191,15.6227,142.91,142.89,6.9983]
[1724337109182,15.6227,142.91,142.88,24.495]
[1724337109912,15.6227,142.91,142.85,17.5003]
[1724337111813,15.6227,142.91,142.87,6.9992]
[1724337114713,22.0412,142.91,142.86,6.9997]
[1724337114931,0.12549,142.9,142.86,6.9997]
[1724337115106,22.0412,142.91,142.87,6.9992]
[1724337118522,35.2312,142.91,142.87,6.9992]
[1724337118906,35.2312,142.91,142.88,6.9988]
[1724337122626,35.2312,142.91,142.87,24.4971]
[1724337123016,13.19,142.89,142.86,6.9997]
[1724337123333,13.19,142.89,142.84,17.5014]
[1724337123519,13.19,142.89,142.85,7.0002]
[1724337124019,13.19,142.89,142.84,17.5014]
[1724337124020,13.19,142.89,142.84,24.5021]
[1724337125231,13.19,142.87,142.84,17.5014]
[1724337128044,13.19,142.87,142.85,7.0002]
[1724337130425,13.19,142.87,142.84,17.5014]
[1724337132440,13.19,142.87,142.84,24.5022]
[1724337133235,13.19,142.87,142.84,24.4022]
[1724337133849,16.13919,142.86,142.84,17.4014]
[1724337134946,16.13919,142.86,142.84,24.4022]
[1724337135247,16.0137,142.86,142.85,7.0003]
[1724337136245,16.0137,142.86,142.85,11.08366633]
[1724337136447,16.0137,142.86,142.85,4.08336633]
[1724337136650,16.0137,142.86,142.84,17.4014]
[1724337137043,16.0137,142.86,142.84,24.4017]
[1724337137566,16.0137,142.86,142.85,7.0003]
[1724337137968,2.76762779,142.89,142.85,7.0003]
[1724337138155,0.12549,142.88,142.85,7.0003]
[1724337138675,21.20404139,142.9,142.85,4.08142876]
[1724337138967,19.6085,142.91,142.86,7.56644153]
[1724337139262,19.6085,142.91,142.87,14.56564153]
[1724337139560,19.6085,142.91,142.88,7.56644153]
[1724337139760,19.6085,142.91,142.87,6.9992]
[1724337139939,19.6085,142.91,142.88,7.56895249]
[1724337140144,19.6085,142.91,142.89,7.56895249]
[1724337140338,6.4185,142.91,142.88,17.4965]
[1724337140545,13.19,142.94,142.9,6.9979]
[1724337141869,13.19,142.94,142.91,6.9973]
[1724337142178,13.19,142.94,142.91,14.56833391]
[1724337142336,13.19,142.94,142.91,6.9973]
[1724337142540,13.19,142.94,142.9,24.4919]
[1724337142860,13.19,142.94,142.91,7.57197642]
[1724337143060,13.19,142.94,142.9,24.4919]
[1724337143261,13.19,142.94,142.91,7.57019159]
[1724337143459,13.19,142.94,142.9,24.4919]
[1724337143758,13.19,142.94,142.91,7.57054592]
[1724337143962,13.19,142.94,142.9,24.4919]
[1724337144164,13.19,142.94,142.91,7.5704832]
[1724337144369,13.19,142.94,142.9,24.4919]
[1724337144549,13.19,142.94,142.91,7.57022447]
[1724337144749,13.19,142.94,142.9,24.4919]
[1724337145866,13.19,142.94,142.9,17.4941]
[1724337146172,13.19,142.94,142.9,28.57233693]
[1724337146342,13.19,142.94,142.9,24.4919]
[1724337147940,13.19,142.94,142.9,17.4941]
[1724337148144,13.19,142.94,142.9,21.58143818]
[1724337148356,13.19,142.94,142.9,28.57923818]
[1724337148641,13.19,142.94,142.9,24.4919]
[1724337149350,13.19,142.92,142.89,6.9982]
[1724337150147,13.19,142.92,142.88,6.9988]
[1724337150347,13.19,142.9,142.83,17.5021]
[1724337150567,13.19,142.88,142.85,6.9999]
[1724337150748,13.19,142.88,142.86,6.9998]
[1724337151539,13.19,142.88,142.87,6.9993]
[1724337151766,15.6767,142.91,142.88,6.9987]
[1724337152148,28.8667,142.91,142.88,6.9987]
[1724337152475,28.8667,142.91,142.87,6.9989]
[1724337152657,0.12549,142.9,142.87,6.9989]
[1724337154896,0.12549,142.9,142.86,6.9997]
[1724337155083,0.12549,142.9,142.85,24.5003]
[1724337155084,13.19,142.89,142.85,24.5003]
[1724337155450,0.12549,142.88,142.85,24.5003]
[1724337155646,13.19,142.87,142.85,24.5003]
[1724337157795,0.12549,142.88,142.86,6.9998]
[1724337159277,0.12549,142.88,142.85,24.5002]
[1724337159855,13.19,142.87,142.82,17.5038]
[1724337160061,13.19,142.85,142.82,24.5054]
[1724337160476,13.19,142.85,142.83,7.0011]
[1724337160980,0.12549,142.86,142.83,7.0011]
[1724337161481,1.20458939,142.87,142.84,7.0008]
[1724337161685,6.2028,142.88,142.84,17.5015]
[1724337161891,6.2028,142.88,142.85,7.0001]
[1724337162587,6.2028,142.88,142.86,6.9998]
[1724337162796,15.6767,142.91,142.88,6.9988]
[1724337163558,15.6767,142.91,142.86,17.4987]
[1724337163880,15.6767,142.91,142.86,24.4982]
[1724337164185,13.44098,142.9,142.83,17.5025]
[1724337164863,13.44098,142.9,142.83,18.90255998]
[1724337165078,13.44098,142.9,142.83,17.5025]
[1724337165889,13.44098,142.9,142.86,6.9997]
[1724337166062,13.31549,142.9,142.86,6.9997]
[1724337167360,13.19,142.88,142.83,7.0009]
[1724337167585,0.12549,142.87,142.84,7.0007]
[1724337171391,13.19,142.9,142.85,7.0002]
[1724337171562,0.12549,142.89,142.85,7.0002]
[1724337172598,0.25098,142.89,142.85,7.0002]
[1724337173680,15.6767,142.91,142.86,6.9997]
[1724337173879,33.19,142.9,142.86,6.9997]
[1724337174196,15.6767,142.91,142.87,6.9993]
[1724337174495,28.8667,142.91,142.87,6.9993]
[1724337174695,28.8667,142.91,142.86,24.4986]
[1724337174990,13.19,142.89,142.86,17.4989]
[1724337175786,13.19,142.89,142.86,24.4987]
[1724337176797,13.19,142.89,142.85,7.0002]
[1724337176979,0.12549,142.88,142.85,7.0002]
[1724337177180,0.12549,142.88,142.86,6.9998]
[1724337177498,13.19,142.89,142.85,24.5006]
[1724337178302,13.19,142.89,142.86,6.9998]
[1724337180474,0.12549,142.9,142.87,6.9993]
[1724337181703,15.6767,142.91,142.87,17.4982]
[1724337182008,6.2028,142.92,142.87,17.4982]
[1724337182009,6.2028,142.92,142.89,6.998]
[1724337182306,16.0679,142.94,142.91,6.9972]
[1724337182476,16.0679,142.94,142.85,48.1899]
[1724337182672,16.0679,142.94,142.89,6.9979]
[1724337183495,13.31549,142.93,142.88,17.4966]
[1724337183700,13.19,142.91,142.88,17.4966]
[1724337183875,13.19,142.91,142.88,24.4954]
[1724337184068,13.19,142.91,142.85,34.9999]
[1724337184069,0.12549,142.9,142.85,17.5]
[1724337184271,13.19,142.89,142.85,24.5002]
[1724337184580,6.5386,142.93,142.87,17.4975]
[1724337184789,39.97958,142.93,142.88,6.9988]
[1724337184993,39.85409,142.93,142.89,6.9983]
[1724337185500,39.85409,142.93,142.87,17.4975]
[1724337186107,39.7286,142.93,142.89,6.9982]
[1724337186399,6.5386,142.93,142.91,6.9972]
[1724337186584,16.0679,142.94,142.92,6.9968]
[1724337186784,16.0679,142.94,142.91,6.9973]
[1724337187673,16.0679,142.94,142.89,17.4954]
[1724337188299,16.0679,142.94,142.91,6.9972]
[1724337189921,6.4552,142.97,142.9,1.39951112]
[1724337190202,6.4552,142.97,142.95,6.9953]
[1724337190383,34.5918,143.01,142.93,18.88934453]
[1724337190589,34.5918,143.01,142.95,17.4878]
[1724337190590,21.4018,143.01,142.95,17.4878]
[1724337190885,21.4018,143.01,142.98,6.9939]
[1724337191087,7.19830328,143.05,143.0,6.9929]
[1724337191088,34.5918,143.05,143.0,6.9929]
[1724337192580,21.4018,143.05,143.0,6.9929]
[1724337193109,39.891,143.04,142.99,17.4829]
[1724337193272,32.9,143.02,142.99,17.4829]
[1724337193983,0.12549,143.01,142.98,6.9939]
[1724337195201,0.25098,143.02,142.98,6.9939]
[1724337195800,0.25098,143.02,142.97,6.9944]
[1724337198314,0.25098,143.02,142.96,17.4872]
[1724337198523,0.25098,143.02,142.98,6.9937]
[1724337198820,0.25098,143.02,142.97,6.9943]
[1724337199189,32.9,143.01,142.96,17.4872]
[1724337199397,32.9,143.01,142.96,24.4821]
[1724337199600,0.12549,143.0,142.96,24.4821]
[1724337200122,0.12549,143.0,142.97,6.9942]
[1724337200492,0.12549,143.0,142.96,17.4872]
[1724337200691,0.25098,143.0,142.96,17.4872]
[1724337202444,0.12549,143.0,142.96,24.4818]
[1724337202920,0.12549,143.01,142.96,24.4818]
[1724337204207,0.12549,143.01,142.97,6.9943]
[1724337205023,0.12549,143.02,142.97,6.9943]
[1724337205834,7.11759,143.02,142.97,6.9943]
[1724337206134,0.12549,143.02,142.97,6.9943]
[1724337206316,0.25098,143.02,142.97,6.9943]
[1724337207019,32.93,143.01,142.96,24.482]
[1724337207217,32.93,143.01,142.96,17.4872]
[1724337207218,0.12549,143.0,142.96,17.4872]
[1724337208335,0.12549,143.0,142.96,24.482]
[1724337208526,0.12549,143.02,142.97,6.9942]
[1724337208733,39.9219,143.03,142.97,6.9942]
[1724337208928,39.9219,143.03,142.96,17.4872]
[1724337208929,0.12549,143.02,142.98,6.9939]
[1724337209304,0.12549,143.02,142.97,6.9943]
[1724337210843,22.60405298,143.05,142.98,18.88325096]
[1724337211019,22.60405298,143.05,143.01,6.9924]
[1724337211206,22.60405298,143.05,142.99,1.3984783]
[1724337211207,21.4018,143.05,143.02,6.9919]
[1724337211411,39.9194,143.08,143.02,6.9919]
[1724337211412,32.93,143.08,143.02,6.9919]
[1724337211611,55.005,143.08,143.02,6.9919]
[1724337212634,0.25098,143.07,143.02,6.9919]
[1724337212811,27.24058,143.07,143.01,6.9923]
[1724337213133,6.9901,143.06,143.01,6.9923]
[1724337213342,0.12549,143.05,143.0,24.4747]
[1724337216147,21.32785403,143.07,143.0,17.4821]
[1724337216349,22.075,143.08,143.03,6.9911]
[1724337216636,22.075,143.08,143.04,6.991]
[1724337217025,39.9182,143.1,143.04,6.991]
[1724337217419,6.9882,143.1,143.05,6.9904]
[1724337217943,6.9882,143.1,143.04,6.9909]
[1724337218442,6.9887,143.09,143.04,6.9909]
[1724337218641,0.12549,143.08,143.04,6.9909]
[1724337218840,7.11459,143.08,143.02,17.4791]
[1724337219020,32.93,143.06,142.99,33.4322]
[1724337219211,32.93,143.06,143.01,6.9924]
[1724337219416,0.12549,143.05,143.0,26.9929]
[1724337220346,0.12549,143.05,143.01,6.9924]
[1724337221118,32.93,143.06,143.0,20.0]
[1724337221336,0.12549,143.05,143.0,26.9928]
[1724337222636,39.9201,143.06,143.01,6.9923]
[1724337223357,6.9901,143.06,143.01,6.9923]
[1724337223923,7.11509,143.07,143.01,6.9923]
[1724337224548,7.11509,143.07,143.01,8.3906518]
[1724337224712,32.93,143.08,143.02,8.3902673]
[1724337224920,32.93,143.1,143.02,6.992]
[1724337225145,20.0,143.09,143.02,6.992]
[1724337225328,6.9894,143.08,143.02,6.992]
[1724337225826,32.93,143.08,143.01,17.4802]
[1724337226027,32.93,143.08,143.01,24.4723]
[1724337226225,0.25098,143.07,143.01,24.4723]
[1724337226837,0.25098,143.07,143.01,17.4802]
[1724337227022,39.9201,143.06,143.01,17.4802]
[1724337227857,6.9906,143.05,142.99,6.9933]
[1724337228017,33.05549,143.04,142.99,6.9933]
[1724337228217,6.9915,143.03,142.98,17.4841]
[1724337228421,0.12549,143.02,142.98,17.4841]
[1724337229444,6.9915,143.03,142.98,24.4777]
[1724337229664,7.11659,143.04,142.98,24.4777]
[1724337230138,0.12549,143.03,142.98,24.4777]
[1724337230340,7.11719,143.03,142.98,24.4777]
[1724337230826,7.11719,143.03,142.98,17.4841]
[1724337231250,40.02719,143.03,142.98,17.4841]
[1724337231451,6.992,143.02,142.98,17.4841]
[1724337232825,7.11709,143.03,142.98,17.4841]
[1724337233025,7.11709,143.03,142.98,24.4779]
[1724337233224,0.12549,143.03,142.98,17.4841]
[1724337233444,7.11689,143.04,142.98,24.4779]
[1724337234069,6.9916,143.03,142.98,24.4779]
[1724337234980,7.11659,143.04,142.98,24.4779]
[1724337236051,32.91,143.03,142.97,6.9943]
[1724337236374,0.12549,143.02,142.96,6.9948]
[1724337236671,39.9026,143.01,142.95,39.8041]
[1724337236875,0.12549,143.0,142.95,39.8041]
[1724337237779,7.11849,143.0,142.95,17.4877]
[1724337237980,6.9936,142.99,142.94,6.9957]
[1724337239459,7.11859,143.0,142.95,6.9953]
[1724337240254,0.12549,143.0,142.95,6.9953]
[1724337240583,31.19893465,143.02,142.96,6.9948]
[1724337240958,31.19893465,143.02,142.97,6.9944]
[1724337241278,24.79633465,143.02,142.96,24.4814]
[1724337241481,6.9928,143.01,142.96,24.4814]
[1724337242183,17.80423465,143.02,142.97,1.3987424]
[1724337242388,16.6013,143.02,142.98,6.9939]
[1724337242679,6.9911,143.04,142.99,6.9933]
[1724337242989,13.1324,143.05,142.99,8.39182739]
[1724337244179,23.6441,143.06,143.0,18.88047684]
[1724337245257,16.654,143.06,143.01,8.39081116]
[1724337245969,6.9896,143.07,143.01,8.39081116]
[1724337246166,6.9901,143.06,143.01,8.39081116]
[1724337246882,6.9896,143.07,143.01,8.39081116]
[1724337247060,32.91,143.08,143.02,6.9919]
[1724337247388,7.4428372,143.09,143.02,6.9919]
[1724337247584,20.0,143.08,143.02,6.9919]
[1724337247760,26.9892,143.08,143.02,6.9919]
[1724337247955,26.9892,143.08,143.02,8.39004511]
[1724337248397,26.9892,143.08,143.02,6.9919]
[1724337248573,52.91,143.08,143.0,17.482]
[1724337248899,39.9001,143.06,143.0,24.4746]
[1724337249067,0.12549,143.05,143.0,24.4746]
[1724337250578,6.9895,143.07,143.01,8.39078222]
[1724337250762,59.8992,143.08,143.02,6.9919]
[1724337250966,6.9892,143.08,143.03,8.38965168]
[1724337251266,6.9892,143.08,143.03,6.9915]
[1724337251569,6.9892,143.08,143.02,6.9919]
[1724337252087,6.9892,143.08,143.03,6.9913]
[1724337252466,1.2185372,143.09,143.04,6.991]
[1724337252673,22.8076,143.1,143.05,8.38854486]
[1724337252878,6.9876,143.11,143.05,6.9905]
[1724337253077,6.9876,143.11,143.06,1.39783046]
[1724337253269,6.9876,143.11,143.05,6.9905]
[1724337254192,8.20586132,143.11,143.05,6.9905]
[1724337254395,6.9881,143.1,143.05,6.9905]
[1724337255500,6.9888,143.09,143.04,33.5737]
[1724337256002,6.9892,143.08,143.03,6.9911]